[Event "Early-Titled-Tuesday-Blitz-October-03-2023"]
[Site "Chess.com"]
[Date "2023.10.03"]
[Round "10"]
[White "Defenstrator"]
[Black "viktorskliarov"]
[Result "0-1"]
[WhiteElo "2467"]
[BlackElo "2659"]
[TimeControl "180+1"]
[EndTime "9:56:21 PDT"]
[Termination "viktorskliarov won on time"]

1. Nh3 {[%clk 0:02:49.8]} 1... e5 {[%clk 0:02:55.8]} 2. g3 {[%clk 0:02:38.8]}
2... h5 {[%clk 0:02:55.4]} 3. f4 {[%clk 0:02:23.1]} 3... d6 {[%clk 0:02:47.8]}
4. Bg2 {[%clk 0:02:11.7]} 4... Bxh3 {[%clk 0:02:43.3]} 5. Bxh3 {[%clk
0:02:12.4]} 5... exf4 {[%clk 0:02:43.6]} 6. O-O {[%clk 0:02:09.1]} 6... fxg3
{[%clk 0:02:42.5]} 7. e4 {[%clk 0:02:00.1]} 7... Qh4 {[%clk 0:02:29]} 8. Qf3
{[%clk 0:01:39.7]} 8... Nf6 {[%clk 0:02:27.7]} 9. Qxg3 {[%clk 0:01:26.6]} 9...
Qxg3+ {[%clk 0:02:26.1]} 10. hxg3 {[%clk 0:01:27.2]} 10... Nc6 {[%clk
0:02:20.6]} 11. c3 {[%clk 0:01:18.5]} 11... Be7 {[%clk 0:02:17.1]} 12. Na3
{[%clk 0:01:09.2]} 12... a6 {[%clk 0:02:09.2]} 13. d3 {[%clk 0:00:44]} 13... Ne5
{[%clk 0:02:05.5]} 14. d4 {[%clk 0:00:43.3]} 14... Neg4 {[%clk 0:02:05]} 15. Bg5
{[%clk 0:00:36.7]} 15... Nxe4 {[%clk 0:01:57]} 16. Bxe7 {[%clk 0:00:35.6]} 16...
Kxe7 {[%clk 0:01:57.9]} 17. Rae1 {[%clk 0:00:34.4]} 17... d5 {[%clk 0:01:56.9]}
18. c4 {[%clk 0:00:27.1]} 18... c6 {[%clk 0:01:56.7]} 19. cxd5 {[%clk
0:00:23.9]} 19... cxd5 {[%clk 0:01:57.6]} 20. Rf5 {[%clk 0:00:21.6]} 20... Nf6
{[%clk 0:01:49]} 21. Nc2 {[%clk 0:00:14.4]} 21... Kd6 {[%clk 0:01:39]} 22. Nb4
{[%clk 0:00:07.7]} 22... Rhe8 {[%clk 0:01:19]} 23. Bg2 {[%clk 0:00:05.1]} 23...
Nxg3 {[%clk 0:01:14.9]} 24. Rxe8 {[%clk 0:00:05]} 24... Rxe8 {[%clk 0:01:13.6]}
25. Rg5 {[%clk 0:00:05.9]} 25... Nge4 {[%clk 0:01:06.8]} 26. Rxg7 {[%clk
0:00:06.8]} 26... Re7 {[%clk 0:00:56.5]} 27. Nd3 {[%clk 0:00:04.2]} 27... Ng4
{[%clk 0:00:52.2]} 28. Ne5 {[%clk 0:00:02.9]} 28... Nxe5 {[%clk 0:00:51.5]} 29.
dxe5+ {[%clk 0:00:03.7]} 29... Kxe5 {[%clk 0:00:51.8]} 30. Rh7 {[%clk
0:00:03.7]} 30... Nf6 {[%clk 0:00:50.4]} 31. Rh8 {[%clk 0:00:04.3]} 31... Re8
{[%clk 0:00:49.8]} 32. Rh6 {[%clk 0:00:03.4]} 32... b5 {[%clk 0:00:48.6]} 33.
Kh2 {[%clk 0:00:01.7]} 33... Ng4+ {[%clk 0:00:48.3]} 0-1

[Event "Early-Titled-Tuesday-Blitz-October-03-2023"]
[Site "Chess.com"]
[Date "2023.10.03"]
[Round "10"]
[White "KorolDimitriy75"]
[Black "Larina_Maria"]
[Result "1-0"]
[WhiteElo "2375"]
[BlackElo "2225"]
[TimeControl "180+1"]
[EndTime "9:56:23 PDT"]
[Termination "KorolDimitriy75 won by resignation"]

1. d4 {[%clk 0:03:00.9]} 1... f5 {[%clk 0:02:58.5]} 2. c4 {[%clk 0:03:01.1]}
2... Nf6 {[%clk 0:02:54.1]} 3. Nf3 {[%clk 0:03:01.4]} 3... g6 {[%clk 0:02:52.9]}
4. g3 {[%clk 0:03:00.4]} 4... Bg7 {[%clk 0:02:52]} 5. b3 {[%clk 0:03:00.8]} 5...
O-O {[%clk 0:02:48.6]} 6. Bb2 {[%clk 0:02:59.8]} 6... a5 {[%clk 0:02:47.4]} 7.
Bg2 {[%clk 0:02:58.4]} 7... d6 {[%clk 0:02:44.9]} 8. O-O {[%clk 0:02:58.3]} 8...
Na6 {[%clk 0:02:45]} 9. Nbd2 {[%clk 0:02:57.9]} 9... c6 {[%clk 0:02:42.8]} 10.
Re1 {[%clk 0:02:57.6]} 10... Ne4 {[%clk 0:02:39.8]} 11. Nxe4 {[%clk 0:02:41.9]}
11... fxe4 {[%clk 0:02:40.7]} 12. Nd2 {[%clk 0:02:42.1]} 12... d5 {[%clk
0:02:38]} 13. f3 {[%clk 0:02:19.7]} 13... Bh6 {[%clk 0:01:39.4]} 14. fxe4 {[%clk
0:02:03.4]} 14... Be3+ {[%clk 0:01:38.5]} 15. Kh1 {[%clk 0:02:03.5]} 15... Rf2
{[%clk 0:01:31.3]} 16. Nf1 {[%clk 0:01:45]} 16... Rxg2 {[%clk 0:01:25.9]} 17.
Kxg2 {[%clk 0:01:44]} 17... Bg5 {[%clk 0:01:22.8]} 18. exd5 {[%clk 0:01:23]}
18... cxd5 {[%clk 0:01:23.7]} 19. e4 {[%clk 0:01:17]} 19... dxe4 {[%clk
0:01:20.5]} 20. d5 {[%clk 0:01:13.2]} 20... Nc5 {[%clk 0:01:16.5]} 21. Bd4
{[%clk 0:01:00.6]} 21... b6 {[%clk 0:00:53.7]} 22. Nd2 {[%clk 0:00:39.2]} 22...
Bf5 {[%clk 0:00:29.5]} 23. Bxc5 {[%clk 0:00:36.2]} 23... bxc5 {[%clk 0:00:30.4]}
24. Nxe4 {[%clk 0:00:36.4]} 24... Bh6 {[%clk 0:00:19.7]} 25. Nxc5 {[%clk
0:00:32.9]} 25... Qc8 {[%clk 0:00:19.3]} 26. Ne6 {[%clk 0:00:32.6]} 26... Bxe6
{[%clk 0:00:13]} 27. Rxe6 {[%clk 0:00:33.5]} 27... Ra6 {[%clk 0:00:11.5]} 28.
Qe2 {[%clk 0:00:31.9]} 28... Ra7 {[%clk 0:00:09.7]} 29. Rxe7 {[%clk 0:00:26.4]}
29... Rxe7 {[%clk 0:00:07.5]} 30. Qxe7 {[%clk 0:00:27.3]} 30... Bg7 {[%clk
0:00:07.9]} 31. Rf1 {[%clk 0:00:24.7]} 1-0

[Event "Early-Titled-Tuesday-Blitz-October-03-2023"]
[Site "Chess.com"]
[Date "2023.10.03"]
[Round "10"]
[White "zozik"]
[Black "ezkybel"]
[Result "0-1"]
[WhiteElo "2342"]
[BlackElo "2501"]
[TimeControl "180+1"]
[EndTime "9:56:25 PDT"]
[Termination "ezkybel won by resignation"]

1. d4 {[%clk 0:03:00.9]} 1... e6 {[%clk 0:02:56.5]} 2. Nf3 {[%clk 0:02:59.6]}
2... Nf6 {[%clk 0:02:53.8]} 3. g3 {[%clk 0:03:00.5]} 3... c5 {[%clk 0:02:46.4]}
4. Bg2 {[%clk 0:03:01.4]} 4... Nc6 {[%clk 0:02:44]} 5. O-O {[%clk 0:03:02.3]}
5... Qb6 {[%clk 0:02:44.4]} 6. Na3 {[%clk 0:02:46.7]} 6... d5 {[%clk 0:02:38.8]}
7. c4 {[%clk 0:02:35.5]} 7... cxd4 {[%clk 0:02:35]} 8. cxd5 {[%clk 0:02:35.2]}
8... Nxd5 {[%clk 0:02:33.4]} 9. Nc4 {[%clk 0:02:32.7]} 9... Qa6 {[%clk
0:02:29.2]} 10. b3 {[%clk 0:02:26.3]} 10... Be7 {[%clk 0:02:27.8]} 11. Bb2
{[%clk 0:02:15.9]} 11... b5 {[%clk 0:02:27.8]} 12. Nce5 {[%clk 0:02:12.3]} 12...
Nxe5 {[%clk 0:02:21.9]} 13. Nxe5 {[%clk 0:02:13.2]} 13... O-O {[%clk 0:02:22.4]}
14. Qxd4 {[%clk 0:02:12.2]} 14... Bf6 {[%clk 0:02:21.2]} 15. e4 {[%clk 0:02:10]}
15... Ne7 {[%clk 0:02:13.1]} 16. Qe3 {[%clk 0:01:53]} 16... Bb7 {[%clk
0:02:07.7]} 17. a4 {[%clk 0:01:33.8]} 17... b4 {[%clk 0:02:02.3]} 18. Rad1
{[%clk 0:01:32.1]} 18... Rfd8 {[%clk 0:01:56.4]} 19. Rfe1 {[%clk 0:01:11.4]}
19... Ng6 {[%clk 0:01:51]} 20. Bf1 {[%clk 0:01:07.8]} 20... Qb6 {[%clk
0:01:47.9]} 21. Qxb6 {[%clk 0:00:29.7]} 21... axb6 {[%clk 0:01:48.8]} 22. Rxd8+
{[%clk 0:00:20.9]} 22... Rxd8 {[%clk 0:01:46]} 23. Nc4 {[%clk 0:00:21.8]} 23...
Bxb2 {[%clk 0:01:43.5]} 24. Nxb2 {[%clk 0:00:22.7]} 24... Ne5 {[%clk 0:01:32.1]}
25. Bg2 {[%clk 0:00:20.1]} 25... Rd2 {[%clk 0:01:23.6]} 26. Nc4 {[%clk
0:00:19.9]} 26... Nxc4 {[%clk 0:01:19.7]} 27. bxc4 {[%clk 0:00:20.8]} 27... b3
{[%clk 0:01:16.2]} 28. Rb1 {[%clk 0:00:19.6]} 28... b2 {[%clk 0:01:12.3]} 29. e5
{[%clk 0:00:19.5]} 29... Ba6 {[%clk 0:01:01.6]} 30. Bf1 {[%clk 0:00:19.1]} 30...
f6 {[%clk 0:00:40.1]} 31. exf6 {[%clk 0:00:18.3]} 31... gxf6 {[%clk 0:00:41]}
32. h4 {[%clk 0:00:16.9]} 32... Kf7 {[%clk 0:00:37.1]} 33. h5 {[%clk 0:00:17.5]}
33... Ke7 {[%clk 0:00:36.6]} 34. h6 {[%clk 0:00:16.1]} 34... Kd6 {[%clk
0:00:32.3]} 35. Kg2 {[%clk 0:00:15.1]} 35... Bb7+ {[%clk 0:00:29.6]} 36. Kg1
{[%clk 0:00:15.4]} 36... Be4 {[%clk 0:00:29.7]} 0-1

[Event "Early-Titled-Tuesday-Blitz-October-03-2023"]
[Site "Chess.com"]
[Date "2023.10.03"]
[Round "10"]
[White "bylavochka"]
[Black "Mr_Lion22"]
[Result "0-1"]
[WhiteElo "2355"]
[BlackElo "2494"]
[TimeControl "180+1"]
[EndTime "9:56:26 PDT"]
[Termination "Mr_Lion22 won on time"]

1. e4 {[%clk 0:03:00.9]} 1... c5 {[%clk 0:02:08]} 2. Nf3 {[%clk 0:03:00.1]} 2...
d6 {[%clk 0:02:07.6]} 3. d4 {[%clk 0:03:00.6]} 3... cxd4 {[%clk 0:02:08.5]} 4.
Nxd4 {[%clk 0:03:01.5]} 4... Nf6 {[%clk 0:02:09]} 5. Nc3 {[%clk 0:03:01.8]} 5...
a6 {[%clk 0:02:09.9]} 6. f3 {[%clk 0:03:01.7]} 6... e5 {[%clk 0:02:10.1]} 7. Nb3
{[%clk 0:03:01.8]} 7... Be6 {[%clk 0:02:10.7]} 8. Be3 {[%clk 0:03:02.1]} 8...
Nbd7 {[%clk 0:02:11.3]} 9. Qd2 {[%clk 0:03:02.3]} 9... h5 {[%clk 0:02:11.6]} 10.
O-O-O {[%clk 0:03:01.9]} 10... Rc8 {[%clk 0:02:12]} 11. Kb1 {[%clk 0:02:55.1]}
11... b5 {[%clk 0:02:07.9]} 12. Qf2 {[%clk 0:02:47]} 12... Qc7 {[%clk 0:02:00]}
13. h4 {[%clk 0:02:20.6]} 13... Be7 {[%clk 0:01:53.4]} 14. g3 {[%clk 0:02:19.8]}
14... O-O {[%clk 0:01:48.7]} 15. Bh3 {[%clk 0:02:19.3]} 15... b4 {[%clk
0:01:39.7]} 16. Na4 {[%clk 0:01:43.1]} 16... d5 {[%clk 0:01:32.7]} 17. Nb6
{[%clk 0:01:34.1]} 17... Nxb6 {[%clk 0:01:16.7]} 18. Bxb6 {[%clk 0:01:35]} 18...
Qc6 {[%clk 0:01:11]} 19. Bxe6 {[%clk 0:01:30.4]} 19... fxe6 {[%clk 0:01:10.4]}
20. exd5 {[%clk 0:01:16.8]} 20... exd5 {[%clk 0:01:11.2]} 21. Ba5 {[%clk
0:01:10.9]} 21... d4 {[%clk 0:01:07.8]} 22. Rhe1 {[%clk 0:01:03.1]} 22... Ne4
{[%clk 0:01:05.3]} 23. Qg2 {[%clk 0:00:41.8]} 23... Rxf3 {[%clk 0:01:01.6]} 24.
Qxf3 {[%clk 0:00:08.8]} 24... Nc3+ {[%clk 0:01:01.4]} 25. bxc3 {[%clk 0:00:09]}
25... Qxf3 {[%clk 0:01:01.7]} 26. cxd4 {[%clk 0:00:09.4]} 26... e4 {[%clk
0:00:56]} 27. Rf1 {[%clk 0:00:04.3]} 27... Qc3 {[%clk 0:00:55.8]} 28. Rd2 {[%clk
0:00:04.7]} 28... e3 {[%clk 0:00:55.7]} 29. Re2 {[%clk 0:00:04.8]} 29... Bf6
{[%clk 0:00:54.8]} 30. Rf4 {[%clk 0:00:04.7]} 30... Bxd4 {[%clk 0:00:55.2]} 31.
Rxd4 {[%clk 0:00:04.7]} 31... Rf8 {[%clk 0:00:55.4]} 32. Rd1 {[%clk 0:00:04.5]}
32... Rf2 {[%clk 0:00:55.7]} 33. Nd4 {[%clk 0:00:03.4]} 33... Rxe2 {[%clk
0:00:47.2]} 34. Nxe2 {[%clk 0:00:04.3]} 34... Qd2 {[%clk 0:00:46.8]} 35. Bxb4
{[%clk 0:00:01.7]} 35... Qxd1+ {[%clk 0:00:46.6]} 36. Kb2 {[%clk 0:00:01.8]}
36... Qxe2 {[%clk 0:00:46.5]} 0-1

[Event "Early-Titled-Tuesday-Blitz-October-03-2023"]
[Site "Chess.com"]
[Date "2023.10.03"]
[Round "10"]
[White "GMJustin"]
[Black "Gyulamiryan-koryun"]
[Result "1-0"]
[WhiteElo "2208"]
[BlackElo "1993"]
[TimeControl "180+1"]
[EndTime "9:56:26 PDT"]
[Termination "GMJustin won by checkmate"]

1. d4 {[%clk 0:02:38.5]} 1... Nf6 {[%clk 0:02:59.3]} 2. c4 {[%clk 0:02:37.8]}
2... c5 {[%clk 0:02:58.8]} 3. d5 {[%clk 0:02:37.1]} 3... b5 {[%clk 0:02:58.4]}
4. cxb5 {[%clk 0:02:37.7]} 4... a6 {[%clk 0:02:58.7]} 5. bxa6 {[%clk 0:02:33.9]}
5... Bxa6 {[%clk 0:02:58.8]} 6. Nc3 {[%clk 0:02:23.9]} 6... g6 {[%clk
0:02:57.4]} 7. e4 {[%clk 0:02:14.1]} 7... Bxf1 {[%clk 0:02:56.6]} 8. Kxf1 {[%clk
0:02:14.5]} 8... d6 {[%clk 0:02:55.8]} 9. Nge2 {[%clk 0:02:09]} 9... Bg7 {[%clk
0:02:54.7]} 10. h3 {[%clk 0:02:05.4]} 10... O-O {[%clk 0:02:54.4]} 11. Kg1
{[%clk 0:02:05.4]} 11... Nbd7 {[%clk 0:02:52.6]} 12. Kh2 {[%clk 0:02:04.4]}
12... Qa5 {[%clk 0:02:50.7]} 13. Re1 {[%clk 0:01:57.1]} 13... Rfb8 {[%clk
0:02:49.7]} 14. Qc2 {[%clk 0:01:49.6]} 14... c4 {[%clk 0:02:46.6]} 15. Be3
{[%clk 0:01:25.3]} 15... Ne5 {[%clk 0:02:44.9]} 16. Nc1 {[%clk 0:01:08]} 16...
Qb4 {[%clk 0:02:32.9]} 17. Re2 {[%clk 0:01:04.8]} 17... Nfd7 {[%clk 0:02:24.7]}
18. f4 {[%clk 0:01:01.5]} 18... Nd3 {[%clk 0:02:23]} 19. Nxd3 {[%clk 0:01:00.2]}
19... cxd3 {[%clk 0:02:23]} 20. Qxd3 {[%clk 0:01:00.2]} 20... Nc5 {[%clk
0:02:19.8]} 21. Bxc5 {[%clk 0:00:55.6]} 21... dxc5 {[%clk 0:02:16.9]} 22. a3
{[%clk 0:00:48.4]} 22... Qb3 {[%clk 0:02:14.3]} 23. e5 {[%clk 0:00:44.6]} 23...
c4 {[%clk 0:02:13.1]} 24. Qe4 {[%clk 0:00:41.8]} 24... Ra6 {[%clk 0:02:00.2]}
25. Rd1 {[%clk 0:00:37.6]} 25... Qb7 {[%clk 0:01:47.4]} 26. Rd4 {[%clk
0:00:33.5]} 26... Rb6 {[%clk 0:01:39.9]} 27. Rxc4 {[%clk 0:00:27.9]} 27... Rxb2
{[%clk 0:01:39.8]} 28. Rxb2 {[%clk 0:00:24.6]} 28... Qxb2 {[%clk 0:01:39.7]} 29.
Rb4 {[%clk 0:00:22.3]} 29... Rxb4 {[%clk 0:01:38.1]} 30. Qxb4 {[%clk 0:00:22.5]}
30... Qd2 {[%clk 0:01:36.6]} 31. Qb8+ {[%clk 0:00:11.9]} 31... Bf8 {[%clk
0:01:36]} 32. Qb4 {[%clk 0:00:08.3]} 32... e6 {[%clk 0:01:33.7]} 33. d6 {[%clk
0:00:07.7]} 33... h5 {[%clk 0:01:30.9]} 34. Qc4 {[%clk 0:00:04.3]} 34... Kg7
{[%clk 0:01:29.6]} 35. Ne2 {[%clk 0:00:03.9]} 35... Qe3 {[%clk 0:01:29]} 36. a4
{[%clk 0:00:03.4]} 36... h4 {[%clk 0:01:28.1]} 37. a5 {[%clk 0:00:03.3]} 37...
Qa7 {[%clk 0:01:23.6]} 38. Qb4 {[%clk 0:00:02.4]} 38... Qd7 {[%clk 0:01:22.8]}
39. Qc5 {[%clk 0:00:01.9]} 39... Qa4 {[%clk 0:01:21.7]} 40. Qd4 {[%clk
0:00:01.8]} 40... Qb5 {[%clk 0:01:21.2]} 41. d7 {[%clk 0:00:01.7]} 41... Be7
{[%clk 0:01:20.9]} 42. d8=Q {[%clk 0:00:01.7]} 42... Bxd8 {[%clk 0:01:20.8]} 43.
Qxd8 {[%clk 0:00:02.1]} 43... Qxe2 {[%clk 0:01:20.6]} 44. Qf6+ {[%clk
0:00:02.7]} 44... Kg8 {[%clk 0:01:19.7]} 45. Qxh4 {[%clk 0:00:02.8]} 45... Qb5
{[%clk 0:01:19]} 46. Qd8+ {[%clk 0:00:02.3]} 46... Kg7 {[%clk 0:01:18]} 47. Kg3
{[%clk 0:00:01.9]} 47... g5 {[%clk 0:01:16.9]} 48. Qxg5+ {[%clk 0:00:01.1]}
48... Kf8 {[%clk 0:01:16.7]} 49. h4 {[%clk 0:00:01.8]} 49... Qxa5 {[%clk
0:01:16.6]} 50. Kh2 {[%clk 0:00:02.4]} 50... Qe1 {[%clk 0:01:14.4]} 51. h5
{[%clk 0:00:02.5]} 51... Qe4 {[%clk 0:01:14.2]} 52. h6 {[%clk 0:00:02.8]} 52...
Qg6 {[%clk 0:01:12.6]} 53. Qd8# {[%clk 0:00:02.8]} 1-0

[Event "Early-Titled-Tuesday-Blitz-October-03-2023"]
[Site "Chess.com"]
[Date "2023.10.03"]
[Round "10"]
[White "profedechess93"]
[Black "RamonManon0g"]
[Result "1-0"]
[WhiteElo "2628"]
[BlackElo "2313"]
[TimeControl "180+1"]
[EndTime "9:56:28 PDT"]
[Termination "profedechess93 won by checkmate"]

1. e4 {[%clk 0:03:00.9]} 1... c5 {[%clk 0:02:59.7]} 2. Nf3 {[%clk 0:03:00.6]}
2... d6 {[%clk 0:03:00.3]} 3. Bb5+ {[%clk 0:03:01.1]} 3... Nd7 {[%clk
0:02:59.5]} 4. d4 {[%clk 0:03:01.2]} 4... cxd4 {[%clk 0:02:59.4]} 5. Qxd4 {[%clk
0:03:02.1]} 5... a6 {[%clk 0:02:59.6]} 6. Bxd7+ {[%clk 0:03:02.6]} 6... Bxd7
{[%clk 0:02:59.7]} 7. Bg5 {[%clk 0:03:03.5]} 7... Rc8 {[%clk 0:02:57.5]} 8. Nc3
{[%clk 0:03:03.6]} 8... Nf6 {[%clk 0:02:51]} 9. O-O-O {[%clk 0:02:57.1]} 9...
Qa5 {[%clk 0:02:50]} 10. Kb1 {[%clk 0:02:09.6]} 10... Be6 {[%clk 0:02:45.2]} 11.
Nd5 {[%clk 0:02:06.9]} 11... b5 {[%clk 0:02:17.2]} 12. Rhe1 {[%clk 0:01:50.5]}
12... h6 {[%clk 0:01:44.4]} 13. Bxf6 {[%clk 0:01:48.8]} 13... gxf6 {[%clk
0:01:44]} 14. Nh4 {[%clk 0:01:49.2]} 14... Rc4 {[%clk 0:01:38.6]} 15. Qd3 {[%clk
0:01:07.6]} 15... Rg8 {[%clk 0:01:10.9]} 16. Nf5 {[%clk 0:01:01.8]} 16... Rxg2
{[%clk 0:01:04.1]} 17. Nfe3 {[%clk 0:00:26.8]} 17... Rxf2 {[%clk 0:00:42.8]} 18.
Nxc4 {[%clk 0:00:25.9]} 18... bxc4 {[%clk 0:00:43.7]} 19. Qxc4 {[%clk
0:00:26.6]} 19... Bd7 {[%clk 0:00:29.1]} 20. Qb3 {[%clk 0:00:24.7]} 20... Bb5
{[%clk 0:00:13.1]} 21. c4 {[%clk 0:00:24.2]} 21... Ba4 {[%clk 0:00:13.5]} 22.
Qb8+ {[%clk 0:00:23.7]} 22... Kd7 {[%clk 0:00:13.9]} 23. Qxf8 {[%clk 0:00:16.4]}
23... Bxd1 {[%clk 0:00:01.1]} 24. Qxe7+ {[%clk 0:00:14.3]} 24... Kc6 {[%clk
0:00:02]} 25. Qe8+ {[%clk 0:00:13.6]} 25... Kc5 {[%clk 0:00:02.4]} 26. Qc8+
{[%clk 0:00:12.3]} 26... Kd4 {[%clk 0:00:02.1]} 27. Rxd1+ {[%clk 0:00:12.1]}
27... Ke5 {[%clk 0:00:03]} 28. Qe8# {[%clk 0:00:10.5]} 1-0

[Event "Early-Titled-Tuesday-Blitz-October-03-2023"]
[Site "Chess.com"]
[Date "2023.10.03"]
[Round "10"]
[White "nitpicker"]
[Black "Elbebiber"]
[Result "1-0"]
[WhiteElo "2234"]
[BlackElo "2138"]
[TimeControl "180+1"]
[EndTime "9:56:31 PDT"]
[Termination "nitpicker won by resignation"]

1. d4 {[%clk 0:03:00.9]} 1... Nf6 {[%clk 0:02:58.7]} 2. c4 {[%clk 0:03:00.7]}
2... e6 {[%clk 0:02:58.7]} 3. g3 {[%clk 0:03:00.2]} 3... d5 {[%clk 0:02:57.8]}
4. Nf3 {[%clk 0:02:59.8]} 4... Be7 {[%clk 0:02:53.9]} 5. Bg2 {[%clk 0:02:59.8]}
5... O-O {[%clk 0:02:51.7]} 6. O-O {[%clk 0:02:59.6]} 6... c5 {[%clk 0:02:50.7]}
7. cxd5 {[%clk 0:02:58.8]} 7... exd5 {[%clk 0:02:46.8]} 8. Nc3 {[%clk
0:02:58.7]} 8... Nc6 {[%clk 0:02:44.1]} 9. dxc5 {[%clk 0:02:56.9]} 9... Bxc5
{[%clk 0:02:44.1]} 10. Bg5 {[%clk 0:02:55]} 10... Be6 {[%clk 0:02:42.2]} 11. Rc1
{[%clk 0:02:46.3]} 11... Be7 {[%clk 0:02:42]} 12. Nd4 {[%clk 0:02:25.2]} 12...
Nxd4 {[%clk 0:02:13.3]} 13. Qxd4 {[%clk 0:02:24.1]} 13... Qd7 {[%clk 0:02:13.3]}
14. Rfd1 {[%clk 0:02:18.5]} 14... Rfd8 {[%clk 0:02:12.7]} 15. Rc2 {[%clk
0:01:42.6]} 15... h6 {[%clk 0:02:11.8]} 16. Bc1 {[%clk 0:01:41]} 16... b6 {[%clk
0:02:03.4]} 17. Rcd2 {[%clk 0:01:39.4]} 17... Rac8 {[%clk 0:02:00]} 18. b3
{[%clk 0:01:12.4]} 18... Bc5 {[%clk 0:01:56.4]} 19. Qa4 {[%clk 0:01:10.2]} 19...
Bxf2+ {[%clk 0:01:39.3]} 20. Kxf2 {[%clk 0:01:05.6]} 20... Rxc3 {[%clk
0:01:38.3]} 21. Qxd7 {[%clk 0:01:02.3]} 21... Rxd7 {[%clk 0:01:37.9]} 22. Bb2
{[%clk 0:01:02.2]} 22... Rc8 {[%clk 0:01:28.4]} 23. Bxf6 {[%clk 0:00:56.7]}
23... gxf6 {[%clk 0:01:28.5]} 24. Bxd5 {[%clk 0:00:44.7]} 24... Rcd8 {[%clk
0:01:21.2]} 25. e4 {[%clk 0:00:44.3]} 25... f5 {[%clk 0:01:09.9]} 26. Ke3 {[%clk
0:00:44.5]} 26... fxe4 {[%clk 0:01:04.5]} 27. Bxe6 {[%clk 0:00:37.7]} 27... Rxd2
{[%clk 0:01:04.5]} 28. Rxd2 {[%clk 0:00:38]} 28... Rxd2 {[%clk 0:01:01.9]} 29.
Kxd2 {[%clk 0:00:38.5]} 29... fxe6 {[%clk 0:01:02.1]} 30. Ke3 {[%clk 0:00:39.2]}
30... Kf7 {[%clk 0:01:02.1]} 31. Kxe4 {[%clk 0:00:35.6]} 31... Kf6 {[%clk
0:01:00.2]} 32. Kf4 {[%clk 0:00:21.3]} 32... e5+ {[%clk 0:00:51.5]} 33. Ke4
{[%clk 0:00:20.2]} 33... h5 {[%clk 0:00:48.5]} 34. h3 {[%clk 0:00:20.2]} 34...
Ke6 {[%clk 0:00:48]} 35. g4 {[%clk 0:00:20.5]} 35... hxg4 {[%clk 0:00:48.4]} 36.
hxg4 {[%clk 0:00:21.3]} 36... b5 {[%clk 0:00:41.5]} 37. b4 {[%clk 0:00:20.3]}
37... a6 {[%clk 0:00:37.7]} 38. g5 {[%clk 0:00:20.5]} 38... Kd6 {[%clk
0:00:34.3]} 39. g6 {[%clk 0:00:19.9]} 39... Ke6 {[%clk 0:00:34.8]} 40. g7 {[%clk
0:00:20.2]} 40... Kf7 {[%clk 0:00:35.3]} 41. Kxe5 {[%clk 0:00:20.9]} 41... Kxg7
{[%clk 0:00:35.3]} 42. Kd6 {[%clk 0:00:21.6]} 42... Kf7 {[%clk 0:00:34.4]} 43.
Kc6 {[%clk 0:00:21.8]} 43... a5 {[%clk 0:00:34.3]} 44. bxa5 {[%clk 0:00:20.8]}
44... b4 {[%clk 0:00:34.9]} 45. a6 {[%clk 0:00:20.8]} 45... Ke7 {[%clk
0:00:34.4]} 46. a7 {[%clk 0:00:20.5]} 46... b3 {[%clk 0:00:35]} 47. axb3 {[%clk
0:00:19.5]} 47... Ke6 {[%clk 0:00:35.3]} 48. a8=Q {[%clk 0:00:19.6]} 1-0

[Event "Early-Titled-Tuesday-Blitz-October-03-2023"]
[Site "Chess.com"]
[Date "2023.10.03"]
[Round "10"]
[White "Xqswdc"]
[Black "Mystery2007"]
[Result "1-0"]
[WhiteElo "2337"]
[BlackElo "2457"]
[TimeControl "180+1"]
[EndTime "9:56:35 PDT"]
[Termination "Xqswdc won by checkmate"]

1. e4 {[%clk 0:03:00.9]} 1... c5 {[%clk 0:02:59.7]} 2. Nf3 {[%clk 0:03:00.9]}
2... e6 {[%clk 0:02:59.4]} 3. d4 {[%clk 0:02:59.3]} 3... cxd4 {[%clk 0:03:00.3]}
4. Nxd4 {[%clk 0:02:59]} 4... Nc6 {[%clk 0:03:00.7]} 5. Nc3 {[%clk 0:02:57.4]}
5... Qc7 {[%clk 0:03:00]} 6. Nxc6 {[%clk 0:02:47.8]} 6... bxc6 {[%clk
0:02:59.6]} 7. Bd3 {[%clk 0:02:48.7]} 7... Nf6 {[%clk 0:02:55.2]} 8. Qe2 {[%clk
0:02:48.6]} 8... Be7 {[%clk 0:02:54.7]} 9. e5 {[%clk 0:02:44.7]} 9... Nd5 {[%clk
0:02:54.1]} 10. O-O {[%clk 0:02:41.4]} 10... O-O {[%clk 0:02:48.4]} 11. Kh1
{[%clk 0:02:39.9]} 11... f5 {[%clk 0:02:48.1]} 12. exf6 {[%clk 0:02:38.8]} 12...
Nxf6 {[%clk 0:02:39.9]} 13. Bg5 {[%clk 0:02:31.1]} 13... d5 {[%clk 0:02:37.3]}
14. Rae1 {[%clk 0:02:24.2]} 14... Bd6 {[%clk 0:02:23.9]} 15. Bxf6 {[%clk
0:02:01.7]} 15... Rxf6 {[%clk 0:02:24.8]} 16. f4 {[%clk 0:01:01.9]} 16... Rxf4
{[%clk 0:01:51.8]} 17. Qh5 {[%clk 0:00:39.3]} 17... g6 {[%clk 0:01:34.8]} 18.
Bxg6 {[%clk 0:00:29.1]} 18... hxg6 {[%clk 0:00:47.4]} 19. Qxg6+ {[%clk 0:00:30]}
19... Qg7 {[%clk 0:00:47.4]} 20. Qe8+ {[%clk 0:00:30.2]} 20... Rf8 {[%clk
0:00:42.3]} 21. Rxf8+ {[%clk 0:00:24.7]} 21... Bxf8 {[%clk 0:00:35.7]} 22. Re3
{[%clk 0:00:20.5]} 22... Bd7 {[%clk 0:00:35.8]} 23. Qxa8 {[%clk 0:00:15.5]}
23... Qh6 {[%clk 0:00:17]} 24. Rg3+ {[%clk 0:00:15.4]} 24... Kf7 {[%clk
0:00:17.6]} 25. Rf3+ {[%clk 0:00:15.6]} 25... Ke7 {[%clk 0:00:16]} 26. h3 {[%clk
0:00:14.5]} 26... Bg7 {[%clk 0:00:13.5]} 27. Qb8 {[%clk 0:00:10.2]} 27... Qc1+
{[%clk 0:00:12.2]} 28. Kh2 {[%clk 0:00:10.6]} 28... Qe1 {[%clk 0:00:11.3]} 29.
g3 {[%clk 0:00:03.9]} 29... Be5 {[%clk 0:00:10.3]} 30. Qf8# {[%clk 0:00:02.7]}
1-0